bitfinex-derivatives/quotes_ETHF0:USTF0_20250929
["timestamp","ask_amount","ask_price","bid_price","bid_amount"]
[1759146732688,0.3112,4100.8,4100.7,3.21026489]
[1759146732992,0.7443,4100.8,4100.7,3.45526489]
[1759146733496,0.7443,4100.8,4100.7,3.87996489]
[1759146733798,0.7443,4100.8,4100.7,4.21666489]
[1759146734697,1.18303,4100.8,4100.7,4.21666489]
[1759146735099,1.18303,4100.8,4100.7,4.65540489]
[1759146735301,1.18303,4100.8,4100.7,4.21666489]
[1759146735495,0.97553,4100.8,4100.7,4.21666489]
[1759146736798,1.18293,4100.8,4100.7,4.21666489]
[1759146736998,1.18293,4100.8,4100.7,3.97166489]
[1759146737301,1.18293,4100.8,4100.7,4.21666489]
[1759146738301,0.97553,4100.8,4100.7,4.65540489]
[1759146738598,0.43873,4100.8,4100.7,4.65540489]
[1759146739194,0.43873,4100.8,4100.7,4.21666489]
[1759146739195,0.76973,4100.8,4100.7,4.21666489]
[1759146739395,0.43873,4100.8,4100.7,4.21666489]
[1759146739700,0.43873,4100.9,4100.8,0.88262]
[1759146739893,0.43873,4100.9,4100.8,1.21932]
[1759146740302,0.4387,4101.2,4101.1,0.4439]
[1759146740495,0.4387,4101.2,4101.1,1.0256]
[1759146740802,0.7697,4101.2,4101.1,1.0256]
[1759146741098,0.4387,4101.2,4101.1,1.4643]
[1759146741300,0.43868,4101.4,4101.3,0.7806]
[1759146741502,0.43867,4101.5,4101.4,1.21927]
[1759146741703,0.43867,4101.5,4101.4,1.46427]
[1759146742601,0.44108101,4101.9,4101.8,0.43863]
[1759146742807,0.00246101,4101.9,4101.8,1.46423]
[1759146743599,0.00246101,4101.9,4101.8,4.67203]
[1759146743898,0.43853,4102.7,4102.6,0.7806]
[1759146744100,0.97523,4102.7,4102.6,1.0266]
[1759146744708,1.18582261,4102.7,4102.6,1.0266]
[1759146745899,0.74729261,4102.7,4102.6,1.0266]
[1759146746098,0.00309261,4102.7,4102.6,1.0266]
[1759146748103,0.31709261,4102.7,4102.6,1.0266]
[1759146748304,0.74729261,4102.7,4102.6,0.4439]
[1759146748510,0.74729261,4102.7,4102.6,0.6899]
[1759146748903,0.74729261,4102.7,4102.6,1.019]
[1759146749109,1.18582261,4102.7,4102.6,1.019]
[1759146749817,1.18582261,4102.7,4102.6,0.4439]
[1759146750015,1.18274,4102.6,4102.5,3.2078]
[1759146750215,0.4302,4102.1,4102.0,3.2078]
[1759146750414,1.18279,4102.1,4102.0,3.6617]
[1759146750610,1.18279,4102.1,4102.0,4.2062]
[1759146751218,0.97529,4102.1,4102.0,4.6448]
[1759146752415,0.97529,4102.1,4102.0,4.2062]
[1759146753918,0.43859,4102.1,4102.0,4.7699]
[1759146756126,0.75259,4102.1,4102.0,4.7699]
[1759146756324,0.97529,4102.1,4102.0,4.2062]
[1759146756626,1.18279,4102.1,4102.0,4.2062]
[1759146756922,1.18279,4102.1,4102.0,3.6311]
[1759146757228,1.18279,4102.1,4102.0,3.8771]
[1759146757530,1.18279,4102.1,4102.0,3.6311]
[1759146757719,1.18279,4102.1,4102.0,3.6617]
[1759146758624,1.18279,4102.1,4102.0,4.2062]
[1759146759322,0.75255,4102.5,4102.4,0.7524]
[1759146759520,0.43855,4102.5,4102.4,0.9984]
[1759146759716,0.75255,4102.5,4102.4,0.9984]
[1759146760426,0.97525,4102.5,4102.4,0.9984]
[1759146762229,0.43855,4102.5,4102.4,0.9984]
[1759146763128,0.97525,4102.5,4102.4,0.9984]
[1759146764727,0.00309261,4102.7,4102.4,0.9984]
[1759146764922,0.97832261,4102.7,4102.6,0.7524]
[1759146765229,0.97832261,4102.7,4102.6,0.9984]
[1759146765429,1.18582261,4102.7,4102.6,0.9984]
[1759146766130,1.18582261,4102.7,4102.6,0.6693]
[1759146766332,1.18582261,4102.7,4102.6,0.9984]
[1759146768127,0.97832261,4102.7,4102.6,0.9984]
[1759146770730,1.18582261,4102.7,4102.6,0.9984]
[1759146777235,1.18582261,4102.7,4102.6,0.7524]
[1759146777436,1.18582261,4102.7,4102.6,0.2079]
[1759146777738,1.18582261,4102.7,4102.6,0.7841]
[1759146778638,1.18582261,4102.7,4102.6,0.7548]
[1759146778837,1.18582261,4102.7,4102.6,1.0008]
[1759146781742,1.18582261,4102.7,4102.6,0.4246]
[1759146781943,1.18582261,4102.7,4102.6,0.246]
[1759146782340,1.19084,4102.6,4102.5,3.2078]
[1759146782544,1.19084,4102.6,4102.2,1.77009361]
[1759146782545,1.19087,4102.3,4102.2,0.0243]
[1759146782736,1.19087,4102.3,4102.2,0.2703]
[1759146783938,1.19087,4102.3,4102.2,0.246]
[1759146784140,0.43859,4102.1,4102.0,3.2078]
[1759146784439,1.19089,4102.1,4102.0,3.4538]
[1759146785238,1.19089,4102.1,4102.0,3.6645]
[1759146785449,1.19089,4102.1,4102.0,3.9654]
[1759146785650,1.19089,4102.1,4102.0,4.2114]
[1759146785848,0.43859,4102.1,4102.0,4.3368]
[1759146786542,0.43859,4102.1,4102.0,4.7754]
[1759146786744,0.43859,4102.1,4102.0,6.52119361]
[1759146787845,0.43859,4102.1,4102.0,4.7754]
[1759146788533,0.43856,4102.4,4102.3,0.43856]
[1759146788738,0.43856,4102.4,4102.3,1.44216]
[1759146789542,0.43855,4102.6,4102.5,0.5525]
[1759146789842,0.00309261,4102.7,4102.6,0.3302]
[1759146790044,0.00309261,4102.7,4102.6,2.94797807]
[1759146790250,0.4385,4103.0,4102.9,0.7576]
[1759146790445,0.4385,4103.0,4102.9,2.75513127]
[1759146791248,0.44052804,4103.0,4102.9,1.0036]
[1759146791452,1.31712804,4103.0,4102.9,1.0036]
[1759146791637,0.7523,4102.7,4102.6,2.17893127]
[1759146791846,1.19083,4102.7,4102.6,2.75513127]
[1759146792145,1.19083,4102.7,4102.6,2.17893127]
[1759146792346,1.19084,4102.6,4102.5,3.2078]
[1759146792542,1.19084,4102.6,4102.5,3.4538]
[1759146794752,1.19084,4102.6,4102.5,3.2078]
[1759146794955,1.19084,4102.6,4102.5,3.4538]
[1759146795656,1.19084,4102.6,4102.5,0.246]
[1759146797857,1.19084,4102.6,4102.5,0.4645]
[1759146798058,1.19084,4102.6,4102.5,0.246]
[1759146798757,5.0,4102.7,4102.1,2.17733127]
[1759146798758,0.88168,4102.2,4102.1,2.17733127]
[1759146799054,1.21208,4102.2,4102.1,2.73123127]
[1759146799252,0.99258,4102.2,4102.1,2.73123127]
[1759146799450,0.99258,4102.2,4102.1,3.16982127]
[1759146799653,0.43858,4102.2,4102.1,3.16982127]
[1759146800052,0.43858,4102.2,4102.1,1.41829]
[1759146800247,0.43858,4102.2,4102.1,0.9797]
[1759146801059,0.76898,4102.2,4102.1,0.9797]
[1759146802353,0.99258,4102.2,4102.1,2.73102291]
[1759146802764,1.21208,4102.2,4102.1,2.73102291]
[1759146803759,1.21208,4102.2,4102.1,2.42312291]
[1759146804164,1.21208,4102.2,4102.1,2.21582291]
[1759146804465,1.21208,4102.2,4102.1,0.4645]
[1759146804657,1.21208,4102.2,4102.1,0.7834]
[1759146804857,1.21208,4102.2,4102.1,0.9986]
[1759146805162,1.21208,4102.2,4102.1,2.74992291]
[1759146805364,1.21208,4102.2,4102.1,0.9986]
[1759146806068,1.21208,4102.2,4102.1,2.74992291]
[1759146806561,1.21208,4102.2,4102.1,0.9986]
[1759146807065,1.21208,4102.2,4102.1,2.74992291]
[1759146807362,1.21208,4102.2,4102.1,0.6797]
[1759146807560,1.21208,4102.2,4102.1,0.9986]
[1759146808167,0.99258,4102.2,4102.1,1.43719]
[1759146808363,0.99258,4102.2,4102.1,2.74992291]
[1759146809066,1.20298,4102.2,4102.1,2.74992291]
[1759146810565,0.7644,4102.2,4102.1,3.18851291]
[1759146810766,1.20298,4102.2,4102.1,3.18851291]
[1759146811671,0.7644,4102.2,4102.1,3.18851291]
[1759146811970,0.43858,4102.2,4102.1,3.18851291]
[1759146812272,0.76928,4102.2,4102.1,2.74992291]
[1759146812470,1.18598,4102.2,4102.1,2.74992291]
[1759146812870,1.18598,4102.2,4102.1,3.18851291]
[1759146813464,0.537,4102.2,4102.1,3.18851291]
[1759146813774,0.97558,4102.2,4102.1,2.74992291]
[1759146814075,0.97558,4102.2,4102.1,3.18851291]
[1759146815072,0.97558,4102.2,4102.1,1.43719]
[1759146817366,0.76927,4102.4,4102.3,0.2207]
[1759146817572,0.97557,4102.4,4102.3,0.9998]
[1759146818473,0.97557,4102.4,4102.3,1.43837]
[1759146819886,0.537,4102.4,4102.3,1.43837]
[1759146820373,0.97556,4102.4,4102.3,3.19067186]
[1759146821083,1.18596,4102.4,4102.3,3.19067186]
[1759146822079,1.18596,4102.4,4102.3,1.43837]
[1759146822281,1.18596,4102.4,4102.3,0.9998]
[1759146822472,1.18596,4102.4,4102.3,0.6809]
[1759146822673,1.18596,4102.4,4102.3,1.43837]
[1759146823179,1.18595,4102.6,4102.5,1.19335]
[1759146823367,1.18595,4102.6,4102.5,6.40025888]
[1759146824482,1.18595,4102.6,4102.5,5.96170888]
[1759146824685,1.18595,4102.6,4102.5,3.6735]
[1759146825386,1.18595,4102.6,4102.5,4.43095]
[1759146825683,1.22257804,4103.0,4102.6,0.75744]
[1759146825684,0.43852,4102.8,4102.6,0.75744]
[1759146825883,0.43852,4102.8,4102.7,0.9998]
[1759146826086,0.97552,4102.8,4102.7,0.9998]
[1759146826283,1.18592,4102.8,4102.7,0.9998]
[1759146826890,1.18592,4102.8,4102.7,1.43833]
[1759146827485,0.13472804,4103.0,4102.7,0.9998]
[1759146827690,0.97752804,4103.0,4102.9,1.19331]
[1759146827889,0.97752804,4103.0,4102.9,0.9998]
[1759146827890,0.53902804,4103.0,4102.9,0.9998]
[1759146828082,0.97752804,4103.0,4102.9,0.9998]
[1759146828285,1.32062804,4103.0,4102.9,0.2207]
[1759146828597,1.32062804,4103.0,4102.9,0.246]
[1759146830886,0.537,4102.4,4102.3,1.75410888]
[1759146831188,1.18597,4102.3,4102.2,1.97480888]
[1759146831390,1.18597,4102.3,4102.2,2.22080888]
[1759146834788,1.18597,4102.3,4102.2,2.75020888]
[1759146836296,0.43857,4102.4,4102.3,1.18977]
[1759146836494,0.43857,4102.4,4102.3,1.43577]
[1759146837192,0.43855,4102.6,4102.5,1.31485]
[1759146837488,0.43855,4102.6,4102.5,3.31408988]
[1759146837688,0.43855,4102.6,4102.5,1.56085]
[1759146837993,0.43855,4102.6,4102.5,4.76865]
[1759146839889,0.43855,4102.6,4102.5,4.3301]
[1759146840497,0.3086,4102.9,4102.5,4.0106]
[1759146840799,0.43851,4102.9,4102.8,0.7512]
[1759146840989,0.43851,4102.9,4102.8,0.9972]
[1759146844501,0.74711,4102.9,4102.8,0.9972]
[1759146844895,1.16631,4102.9,4102.8,0.9972]
[1759146845094,0.85773,4102.7,4102.6,0.2461]
[1759146845401,0.85773,4102.7,4102.6,0.4921]
[1759146845402,1.16633,4102.7,4102.6,0.4921]
[1759146845898,1.16633,4102.7,4102.6,0.8116]
[1759146846903,1.16633,4102.7,4102.6,1.0215]
[1759146847109,0.43853,4102.7,4102.6,1.0215]
[1759146847704,0.43853,4102.7,4102.6,3.21287]
[1759146848205,0.43853,4102.7,4102.6,3.18857]
[1759146848605,0.74713,4102.7,4102.6,3.18857]
[1759146848902,0.95383,4102.7,4102.6,3.18857]
[1759146849199,0.43853,4102.7,4102.6,3.18857]
[1759146849806,0.43853,4102.7,4102.6,2.75003]
[1759146851503,0.00202804,4103.0,4102.9,0.4317]
[1759146851809,0.44052804,4103.0,4102.9,2.74951844]
[1759146853099,0.44052804,4103.0,4102.9,3.18802844]
[1759146853605,0.43848,4103.2,4103.1,0.7644]
[1759146853807,0.43848,4103.2,4103.1,4.65669]
[1759146854002,0.27382,4103.2,4103.1,4.65669]
[1759146854402,0.27630688,4103.2,4103.1,4.65669]
[1759146857303,0.27630688,4103.2,4103.1,6.40632311]
[1759146860814,0.27630688,4103.2,4103.1,5.96783311]
[1759146861015,0.60460688,4103.2,4103.1,6.40632311]
[1759146861216,0.27630688,4103.2,4103.1,6.40632311]
[1759146861607,0.00248688,4103.2,4103.1,4.65669]
[1759146861811,0.76672,4103.7,4103.6,1.20283]
[1759146862016,0.43842,4103.7,4103.6,6.40417018]
[1759146862313,0.98932,4103.7,4103.6,4.65563]
[1759146862712,0.9913696,4103.7,4103.6,4.2196581]
[1759146865314,0.9913696,4103.7,4103.6,4.6580881]
[1759146865509,0.4404696,4103.7,4103.6,4.6580881]
[1759146866815,0.7723696,4103.7,4103.6,4.6580881]
[1759146867306,0.0020496,4103.7,4103.6,4.6580881]
[1759146867509,0.4404696,4103.7,4103.6,4.6580881]
[1759146869316,0.4404696,4103.7,4103.6,4.4130881]
[1759146869517,0.4404696,4103.7,4103.6,4.6580881]
[1759146870317,0.0020496,4103.7,4103.6,4.6580881]
[1759146870919,0.43838,4104.1,4104.0,1.30499]
[1759146871120,0.43838,4104.1,4104.0,1.54999]
[1759146871316,0.43837,4104.3,4104.2,1.17956]
[1759146871514,0.43837,4104.3,4104.2,1.42456]
[1759146871714,0.44073266,4104.3,4104.2,1.42456]
[1759146872218,0.00236266,4104.3,4104.2,1.42456]
[1759146874412,0.44072266,4104.3,4104.2,1.42457]
[1759146874919,0.00236266,4104.3,4104.2,1.42457]
[1759146878924,0.00236266,4104.3,4104.2,1.17957]
[1759146879223,0.00236266,4104.3,4104.2,1.42457]
[1759146879821,0.00236266,4104.3,4104.2,1.43524677]
[1759146881719,1.19372266,4104.3,4104.2,0.99687677]
[1759146882125,1.19372266,4104.3,4104.2,0.25567677]
[1759146882711,1.19372266,4104.3,4104.2,0.46767677]
[1759146883522,1.19372266,4104.3,4104.2,0.01067677]
[1759146883821,6.19372266,4104.3,4104.2,0.25567677]
[1759146885024,6.19372266,4104.3,4104.2,0.01067677]
[1759146885230,6.19372266,4104.3,4104.2,0.25567677]
[1759146886430,6.19372266,4104.3,4104.2,0.46767677]
[1759146887639,6.19372266,4104.3,4104.2,0.25567677]
[1759146889126,6.19372266,4104.3,4104.2,0.01067677]
[1759146889328,6.19372266,4104.3,4104.2,0.25567677]
[1759146891936,1.19372266,4104.3,4104.2,0.25567677]
[1759146895534,1.19372266,4104.3,4104.2,0.46887677]
[1759146897134,1.19372266,4104.3,4104.2,0.01067677]
[1759146897438,1.19372266,4104.3,4104.2,0.25567677]
[1759146900443,1.19372266,4104.3,4104.2,0.01067677]
[1759146900634,1.19372266,4104.3,4104.2,0.25567677]
[1759146903443,1.19372266,4104.3,4104.2,0.46887677]
[1759146903944,1.19372266,4104.3,4104.2,0.01067677]
[1759146904244,1.19372266,4104.3,4104.2,0.25567677]
[1759146913354,1.72226967,4104.3,4104.2,0.25567677]
[1759146914351,1.19372266,4104.3,4104.2,0.25567677]
[1759146914653,1.72227366,4104.3,4104.2,0.25567677]
[1759146915358,1.19372266,4104.3,4104.2,0.25567677]
[1759146915558,1.72228249,4104.3,4104.2,0.25567677]
[1759146917462,1.19372266,4104.3,4104.2,0.99727677]
[1759146918151,1.19372266,4104.3,4104.2,0.47487677]
[1759146920258,1.19372266,4104.3,4104.2,0.25567677]
[1759146922761,1.72236216,4104.3,4104.2,0.01067677]
[1759146922961,1.72236216,4104.3,4104.2,0.25567677]
[1759146925156,1.19372266,4104.3,4104.2,0.47867677]
[1759146925346,1.19372266,4104.3,4104.2,0.81527677]
[1759146926462,1.19372266,4104.3,4104.2,1.03917677]
[1759146927759,1.19372266,4104.3,4104.2,0.47867677]
[1759146929966,1.19372266,4104.3,4104.2,0.25567677]
[1759146931864,1.72238446,4104.3,4104.2,0.01067677]
[1759146936363,1.72238446,4104.3,4104.2,0.23367677]
[1759146936556,0.43832,4104.7,4104.5,0.1251]
[1759146936762,0.97147,4105.1,4105.0,0.7835]
[1759146936968,0.43829,4104.9,4104.8,1.74962784]
[1759146937163,1.18949,4104.9,4104.8,0.8046]
[1759146937358,1.18949,4104.9,4104.8,1.0285]
[1759146937563,1.19168149,4104.9,4104.8,1.0285]
[1759146937764,1.19168149,4104.9,4104.8,1.03917677]
[1759146939776,0.44048149,4104.9,4104.8,1.03917677]
[1759146940869,0.44048149,4104.9,4104.8,6.03917677]
[1759146941773,0.44048149,4104.9,4104.8,1.03917677]
[1759146943967,0.44048149,4104.9,4104.8,1.47748677]
[1759146944174,0.43825,4105.3,4105.2,1.22176]
[1759146944375,0.43825,4105.3,4105.2,4.2363]
[1759146944676,0.97145,4105.3,4105.2,4.2363]
[1759146944861,1.18945,4105.3,4105.2,4.24697677]
[1759146945273,1.19198916,4105.3,4105.2,4.24697677]
[1759146945572,1.19198916,4105.3,4105.2,3.21847677]
[1759146945872,1.19198916,4105.3,4105.2,3.46347677]
[1759146947175,1.19198916,4105.3,4105.2,3.68647677]
[1759146949476,1.19198916,4105.3,4105.2,3.21847677]
[1759146949674,1.19198916,4105.3,4105.2,0.25567677]
[1759146950171,1.19198916,4105.3,4105.2,1.03917677]
[1759146952280,1.19198916,4105.3,4105.2,0.70257677]
[1759146953976,1.19198916,4105.3,4105.2,1.03917677]
[1759146954571,0.97398916,4105.3,4105.2,1.03917677]
[1759146954782,0.76288916,4105.3,4105.2,1.03917677]
[1759146955272,0.44078916,4105.3,4105.2,1.03917677]
[1759146955877,0.96898916,4105.3,4105.2,1.03917677]
[1759146957688,0.44078916,4105.3,4105.2,1.03917677]
[1759146958588,0.96898916,4105.3,4105.2,1.03917677]
[1759146959489,0.96898916,4105.3,4105.2,0.79417677]
[1759146959790,0.96898916,4105.3,4105.2,1.03917677]
[1759146960997,1.17958916,4105.3,4105.2,1.03917677]
[1759146966191,0.96898916,4105.3,4105.2,1.03917677]
[1759146969289,1.17958916,4105.3,4105.2,1.03917677]
[1759146970092,1.17958916,4105.3,4105.2,0.01067677]
[1759146970395,1.17958916,4105.3,4105.2,0.25567677]
[1759146971595,41.97958916,4105.3,4105.2,0.25567677]
[1759146971786,41.97958916,4105.3,4105.2,0.01067677]
[1759146971993,1.17707,4105.1,4105.0,0.0243]
[1759146972500,0.43835,4104.3,4104.2,1.74962784]
[1759146972695,1.17715,4104.3,4104.2,1.99462784]
[1759146973000,1.17715,4104.3,4104.2,2.21952784]
[1759146973796,1.17715,4104.3,4104.2,0.4699]
[1759146976602,1.17715,4104.3,4104.2,0.4699]
[1759146977597,1.17736,4104.2,4104.1,3.2078]
[1759146977900,1.17736,4104.2,4104.1,3.4528]
[1759146978099,1.17736,4104.2,4104.1,0.245]
[1759146979595,0.43838,4104.1,4104.0,0.0243]
[1759146979801,1.17738,4104.1,4104.0,0.2693]
[1759146980006,1.17738,4104.1,4104.0,0.245]
[1759146983907,1.1774,4103.9,4103.8,0.0243]
[1759146985609,0.87162,4103.7,4103.6,0.2255581]
[1759146985809,1.19172,4103.7,4103.6,0.2255581]
[1759146988510,1.19172,4103.7,4103.6,0.4705581]
[1759146989307,1.19172,4103.7,4103.6,0.0024581]
[1759146990115,6.19172,4103.7,4103.6,0.0024581]
[1759146991707,46.99172,4103.7,4103.6,0.0024581]
[1759146995114,47.23672,4103.7,4103.6,0.0024581]
[1759146999520,42.23672,4103.7,4103.6,0.0024581]
[1759147006421,42.76458053,4103.7,4103.6,0.0024581]
[1759147013130,42.76458053,4103.7,4103.6,0.2255581]
[1759147015034,42.76458053,4103.7,4103.6,0.0024581]
[1759147016337,42.76458053,4103.7,4102.6,3.2078]
[1759147016338,1.17582,4102.7,4102.6,3.2078]
[1759147017232,1.17582,4102.7,4102.6,3.21061802]
[1759147018632,1.17582,4102.7,4102.6,0.00281802]
[1759147020436,1.17582,4102.7,4102.6,0.55631802]
[1759147020937,1.17582,4102.7,4102.6,0.76731802]
[1759147022539,1.17582,4102.7,4102.6,0.00281802]
[1759147023733,1.17582,4102.7,4102.6,0.76731802]
[1759147024634,1.17582,4102.7,4102.6,0.42761802]
[1759147024830,1.17582,4102.7,4102.6,0.21661802]
[1759147027535,0.96882,4102.7,4102.6,0.76731802]
[1759147027842,0.43848,4103.0,4102.9,0.7645]
[1759147028049,0.43846,4103.3,4103.0,0.8861]
[1759147028238,0.43846,4103.3,4103.2,0.7645]
[1759147028545,0.64776,4103.3,4103.2,0.7645]
[1759147028737,0.96876,4103.3,4103.2,0.7645]
[1759147031339,0.43845,4103.3,4103.2,3.9723]
[1759147031745,0.321,4103.9,4103.8,0.5507]
[1759147031949,0.75939,4103.9,4103.8,1.0095]
[1759147032341,0.43837,4104.1,4103.9,0.3397]
[1759147032542,3.2078,4104.2,4104.1,0.3397]
[1759147032847,3.2078,4104.2,4104.1,0.7645]
[1759147033037,0.75935,4104.3,4104.1,0.7645]
[1759147033240,0.43833,4104.5,4104.4,0.7738]
[1759147033551,0.98591,4104.7,4104.6,0.7738]
[1759147033843,0.66427,4105.1,4105.0,0.7738]
[1759147034036,0.66427,4105.1,4105.0,1.0188]
[1759147034442,0.98587,4105.1,4105.0,1.0188]
[1759147035142,1.20037,4105.1,4105.0,1.0188]
[1759147035343,0.3216,4105.1,4105.0,1.0188]
[1759147035541,0.32413916,4105.3,4105.2,0.3338]
[1759147035742,0.32413916,4105.3,4105.2,0.7738]
[1759147035743,0.00253916,4105.3,4105.2,0.7738]
[1759147036953,0.55013916,4105.3,4105.2,0.7738]
[1759147037150,0.55013916,4105.3,4105.2,1.0188]
[1759147037549,0.00253916,4105.3,4105.2,1.0188]
[1759147038549,0.32413916,4105.3,4105.2,1.0188]
[1759147038746,0.00253916,4105.3,4105.2,1.0188]
[1759147041053,0.00253916,4105.3,4105.2,4.2266]
[1759147041257,0.44076916,4105.3,4105.2,4.2266]
[1759147047965,1.21036916,4105.3,4105.2,3.8928]
[1759147048564,1.21036916,4105.3,4105.2,4.2132]
[1759147052465,1.21036916,4105.3,4105.2,1.0054]
[1759147052664,0.3244,4104.9,4104.7,3.2078]
[1759147052866,0.4383,4104.7,4104.6,0.0243]
[1759147053063,0.88354,4104.3,4104.2,3.4129]
[1759147053272,1.20794,4104.3,4104.2,3.6579]
[1759147053868,1.20794,4104.3,4104.2,3.631]
[1759147054064,1.20794,4104.3,4104.2,3.876]
[1759147055866,1.20794,4104.3,4104.2,4.1964]
[1759147056072,0.98194,4104.3,4104.2,4.1964]
[1759147056777,1.20794,4104.3,4104.2,4.1964]
[1759147057177,1.20794,4104.3,4104.2,3.876]
[1759147058179,1.20794,4104.3,4104.2,3.631]
[1759147058372,1.20794,4104.3,4104.2,3.876]
[1759147058573,1.20794,4104.3,4104.2,3.4129]
[1759147058773,1.20794,4104.3,4104.2,3.2078]
[1759147058971,1.20799,4103.8,4103.7,3.4372]
[1759147059170,1.20799,4103.8,4103.7,3.6822]
[1759147059372,1.20799,4103.8,4103.7,4.1964]
[1759147061082,0.43839,4103.8,4103.7,4.1964]
[1759147062276,41.5696,4104.4,4104.3,0.7436]
[1759147062472,41.5696,4104.4,4104.3,0.9886]
[1759147062873,42.00793,4104.4,4104.3,0.9886]
[1759147063073,1.20793,4104.4,4104.3,0.9886]
[1759147063274,1.09574,4104.8,4104.7,0.4232]
[1759147063275,0.43829,4104.8,4104.7,0.4232]
[1759147063584,1.20789,4104.8,4104.7,0.6682]
[1759147063788,1.20789,4104.8,4104.7,0.9886]
[1759147065085,0.98189,4104.8,4104.7,0.9886]
[1759147066085,0.98189,4104.8,4104.7,0.7436]
[1759147066283,0.43829,4104.8,4104.7,0.9886]
[1759147068189,0.43829,4104.8,4104.7,4.1964]
[1759147069785,0.43827,4105.0,4104.7,3.876]
[1759147069988,0.43827,4105.0,4104.9,0.7436]
[1759147070184,0.3244,4105.1,4104.9,0.4232]
[1759147070491,0.76266,4105.1,4105.0,0.9886]
[1759147070787,0.98186,4105.1,4105.0,0.9886]
[1759147072187,0.76266,4105.1,4105.0,0.9886]
[1759147072689,0.43826,4105.1,4105.0,1.1102]
[1759147072889,0.98186,4105.1,4105.0,0.9886]
[1759147077782,0.00253916,4105.3,4105.0,1.1102]
[1759147078087,0.3309,4105.2,4105.1,0.7663]
[1759147078287,0.00253916,4105.3,4105.2,0.3176]
[1759147078490,0.00253916,4105.3,4105.2,4.41235]
[1759147079694,0.00253916,4105.3,4105.2,3.9741]
[1759147081189,0.33343916,4105.3,4105.2,3.9741]
[1759147081384,0.33343916,4105.3,4105.2,4.2191]
[1759147081585,0.00253916,4105.3,4105.2,4.2191]
[1759147082384,0.44077916,4105.3,4105.2,4.2191]
[1759147082789,0.77167916,4105.3,4105.2,4.2191]
[1759147083096,0.98377916,4105.3,4105.2,4.2191]
[1759147083698,1.19857916,4105.3,4105.2,3.4528]
[1759147084592,6.19857916,4105.3,4105.2,3.2078]
[1759147084986,6.19857916,4105.3,4105.2,3.4528]
[1759147087197,6.19857916,4105.3,4105.2,0.245]
[1759147087697,46.99857916,4105.3,4105.2,0.245]
[1759147097505,1.32997,4105.0,4104.9,0.0243]
[1759147098006,0.97453,4104.5,4104.4,1.0192]
[1759147100105,1.19973,4104.5,4104.4,1.0192]
[1759147106010,1.19973,4104.5,4104.4,1.45754]
[1759147107110,0.1303,4105.0,4104.4,1.0192]
[1759147107410,0.4383,4104.7,4104.6,1.21021]
[1759147107810,0.76429,4104.8,4104.7,1.21019]
[1759147108813,0.99089,4104.8,4104.7,1.21019]
[1759147109817,0.5526,4104.8,4104.7,1.21019]
[1759147110616,0.326,4104.8,4104.7,1.21019]
[1759147111220,0.99087,4105.0,4104.9,0.7719]
[1759147111423,0.99087,4105.0,4104.9,1.0169]
[1759147111710,0.326,4105.1,4104.9,0.6799]
[1759147111906,0.99086,4105.1,4105.0,0.7719]
[1759147112316,1.20036,4105.1,4105.0,0.7719]
[1759147117514,0.5526,4105.1,4105.0,1.21017]
[1759147117817,0.99086,4105.1,4105.0,1.21017]
[1759147118017,0.99086,4105.1,4105.0,0.7719]
[1759147118210,1.20036,4105.1,4105.0,0.7719]
[1759147124612,0.7621,4105.1,4105.0,1.21017]
[1759147124818,0.7621,4105.1,4105.0,0.7719]
[1759147125114,0.5526,4105.1,4105.0,0.7719]
[1759147125418,0.326,4105.1,4105.0,0.8935]
[1759147125917,0.76426,4105.1,4105.0,0.8935]
[1759147126210,0.99086,4105.1,4105.0,0.8935]
[1759147126420,0.99086,4105.1,4105.0,0.7719]
[1759147127822,1.20036,4105.1,4105.0,0.7719]
[1759147131225,0.99086,4105.1,4105.0,0.7719]
[1759147132417,0.99086,4105.1,4105.0,0.6799]
[1759147132418,1.20036,4105.1,4105.0,0.6799]
[1759147133024,1.20036,4105.1,4105.0,1.0169]
[1759147143327,1.20036,4105.1,4105.0,0.7719]
[1759147143535,0.87218,4104.9,4104.8,1.77392784]
[1759147143742,1.18878,4104.9,4104.8,1.77392784]
[1759147143936,1.18878,4104.9,4104.8,0.245]
[1759147144126,1.18878,4104.9,4104.8,1.0041]
[1759147144821,1.18878,4104.9,4104.8,0.5829]
[1759147145134,1.18879,4104.8,4104.7,3.2078]
[1759147145334,1.18879,4104.8,4104.7,3.4528]
[1759147146836,1.18879,4104.8,4104.7,3.6658]
[1759147147130,0.7505,4104.8,4104.7,3.874]
[1759147147331,0.43829,4104.8,4104.7,4.2119]
[1759147147631,0.98119,4104.8,4104.7,4.2119]
[1759147155642,0.96749,4104.8,4104.7,4.2119]
[1759147163240,1.17969,4104.8,4104.7,3.2078]
[1759147163447,1.17969,4104.8,4104.7,3.4528]
[1759147163640,1.17969,4104.8,4104.7,3.2078]
[1759147163842,1.17161,4104.6,4104.5,0.0243]
[1759147164046,1.17161,4104.6,4104.5,0.2693]
[1759147164449,1.17161,4104.6,4104.5,0.245]
[1759147166347,1.17161,4104.6,4104.5,0.4684]
[1759147169155,0.66274,4104.4,4104.3,0.2477]
[1759147169354,1.19254,4104.4,4104.3,0.4927]
[1759147170860,1.19254,4104.4,4104.3,0.4684]
[1759147176358,1.19254,4104.4,4104.3,0.245]
[1759147176959,1.19255,4104.3,4104.2,3.2078]
[1759147177260,1.19255,4104.3,4104.2,3.4528]
[1759147177462,6.19255,4104.3,4104.2,3.2078]
[1759147178366,0.87126,4104.2,4104.1,0.0243]
[1759147178563,1.19256,4104.2,4104.1,0.0243]
[1759147178761,1.19257,4104.1,4104.0,0.245]
[1759147190062,0.75967,4104.1,4104.0,1.0089]
[1759147190257,0.98407,4104.1,4104.0,1.0089]
[1759147194770,1.19257,4104.1,4104.0,1.0089]
[1759147200576,1.19257,4104.1,4104.0,0.4684]
[1759147201076,1.19257,4104.1,4104.0,0.7874]
[1759147201272,1.19257,4104.1,4104.0,0.4684]